bitfinex/quotes_ETHUSD_20240718
["timestamp","ask_amount","ask_price","bid_price","bid_amount"]
[1721301892635,0.826,3448.0,3447.7,0.55]
[1721301893036,0.826,3448.0,3447.7,3.45043]
[1721301895094,0.826,3447.8,3447.7,0.55]
[1721301895308,0.826,3447.8,3447.6,3.45055]
[1721301902423,0.826,3447.8,3447.6,0.55]
[1721301904215,0.826,3447.8,3447.5,3.45063]
[1721301905626,0.46984937,3448.2,3447.5,3.45063]
[1721301905785,0.826,3447.9,3447.5,3.45063]
[1721301905978,1.14566329,3447.8,3447.5,3.45063]
[1721301906382,0.826,3447.9,3447.5,3.45063]
[1721301906685,1.14566279,3447.8,3447.5,3.45063]
[1721301906919,0.826,3447.9,3447.5,3.45063]
[1721301907227,1.14566316,3447.8,3447.5,3.45063]
[1721301908304,1.14566316,3447.8,3447.5,6.35123]
[1721301908505,1.14566316,3447.8,3447.5,6.35116]
[1721301908833,1.14566316,3447.8,3447.6,2.90055]
[1721301909136,0.826,3448.1,3447.7,3.0012]
[1721301909349,1.14564955,3448.0,3447.7,5.90167]
[1721301909495,1.14564955,3448.0,3447.7,8.8021]
[1721301909898,1.14564955,3447.9,3447.7,8.8021]
[1721301910107,1.12841081,3448.3,3447.7,8.8021]
[1721301910325,1.1456327,3448.2,3447.7,8.8021]
[1721301910838,1.1456327,3448.2,3447.8,2.90039]
[1721301911002,1.1456327,3448.2,3447.9,0.55]
[1721301912138,1.1456327,3448.2,3448.0,2.3454]
[1721301912299,1.14556524,3448.1,3448.0,2.3454]
[1721301912503,1.14556524,3448.1,3448.0,2.8954]
[1721301912703,2.29113048,3448.1,3448.0,2.8954]
[1721301913445,1.14556524,3448.1,3448.0,5.79563]
[1721301913600,1.14556524,3448.1,3448.0,8.69586]
[1721301915843,1.14556524,3448.1,3448.0,9.70412953]
[1721301916005,1.14556524,3448.1,3448.0,9.70412436]
[1721301916204,1.14556524,3448.1,3448.0,11.21646753]
[1721301916545,1.14556524,3448.1,3448.0,8.69586]
[1721301916752,1.14556524,3448.1,3448.0,9.70406741]
[1721301918842,1.14556524,3448.1,3448.0,8.69586]
[1721301919046,1.14556524,3448.1,3448.0,11.21637407]
[1721301919430,1.14556524,3448.1,3448.0,9.70406563]
[1721301922045,1.14556524,3448.1,3448.0,9.70406419]
[1721301923136,1.14556524,3448.1,3448.0,8.69586]
[1721301925062,1.14556524,3448.1,3448.0,9.70405248]
[1721301925374,1.14556524,3448.1,3448.0,9.70405327]
[1721301925539,1.14556524,3448.1,3448.0,8.69586]
[1721301926051,0.826,3448.8,3448.5,2.89978]
[1721301926369,0.826,3448.8,3448.6,0.55]
[1721301929629,0.826,3448.8,3448.4,0.55]
[1721301929861,0.826,3448.4,3448.2,0.55]
[1721301930081,0.826,3448.4,3448.3,2.89997]
[1721301930254,0.826,3448.4,3448.3,3.44997]
[1721301930763,0.826,3448.4,3448.3,0.55]
[1721301930976,0.826,3448.4,3448.2,3.45004]
[1721301931468,0.826,3448.6,3448.2,3.45004]
[1721301931840,0.826,3448.6,3448.3,0.05753588]
[1721301932045,0.826,3448.6,3448.4,0.55]
[1721301932346,0.826,3448.6,3448.5,0.05732666]
[1721301932547,0.826,3448.6,3448.5,0.60732666]
[1721301947210,6.55016,3448.6,3448.5,0.05732666]
[1721301947418,8.58384627,3448.6,3448.5,0.05732666]
[1721301947564,2.4853,3448.1,3447.5,7.46]
[1721301947770,0.826,3447.9,3447.5,7.46]
[1721301948004,0.826,3447.9,3447.6,0.05570159]
[1721301949215,0.826,3447.9,3447.7,0.55]
[1721301949585,0.826,3447.9,3447.8,0.05566159]
[1721301949786,0.826,3447.9,3447.8,0.60566159]
[1721301952173,0.826,3448.3,3447.8,2.91576159]
[1721301952387,0.826,3448.3,3447.9,0.55]
[1721301952584,0.826,3448.3,3447.9,0.60564159]
[1721301954727,3.62439364,3448.7,3447.9,0.60564159]
[1721301954873,0.826,3448.5,3447.9,0.60564159]
[1721301955069,1.14557464,3448.4,3447.9,0.60564159]
[1721301955324,0.826,3448.5,3447.9,0.60564159]
[1721301955606,1.14558625,3448.4,3447.9,0.60564159]
[1721301955786,1.14558625,3448.4,3447.9,3.50594159]
[1721301956184,0.826,3448.4,3447.9,3.50594159]
[1721301962301,0.826,3448.2,3447.9,0.60564159]
[1721301962502,0.826,3448.0,3447.9,0.60564159]
[1721301970137,3.55789364,3448.6,3447.9,0.60564159]
[1721301970437,0.826,3448.4,3448.0,2.283]
[1721301970732,0.826,3448.4,3448.1,0.55]
[1721301970900,0.826,3448.4,3448.1,0.60568273]
[1721301975404,0.826,3448.4,3448.1,3.50576273]
[1721301975807,0.826,3448.4,3448.2,2.90005]
[1721301976119,0.826,3448.4,3448.3,0.55]
[1721301976306,0.826,3448.4,3448.3,0.60562187]
[1721301977737,0.826,3448.4,3448.3,2.85932187]
[1721301979347,0.826,3448.6,3448.3,2.85932187]
[1721301979724,0.826,3448.6,3448.3,5.75925187]
[1721301984862,0.826,3448.6,3448.4,2.89987]
[1721301985065,0.826,3448.6,3448.5,0.55]
[1721301985369,0.826,3448.6,3448.5,3.50539189]
[1721301989450,0.826,3448.7,3448.6,2.89965]
[1721301989677,0.826,3448.7,3448.6,3.44965]
[1721301989854,0.826,3448.7,3448.6,3.50514236]
[1721301990436,0.77890796,3448.7,3448.6,3.50514236]
[1721301991696,0.77890796,3448.7,3448.6,6.40486236]
[1721301991846,1.21619364,3449.2,3448.8,2.89949]
[1721301992042,0.826,3449.0,3448.9,0.55]
[1721301992247,1.97141092,3449.0,3448.9,3.50483286]
[1721301992563,0.826,3449.0,3448.9,3.50483286]
[1721301993345,1.97136309,3449.0,3448.9,3.50483286]
[1721301993650,1.97136314,3449.0,3448.9,3.50483286]
[1721301993882,0.826,3449.0,3448.9,3.50483286]
[1721301994196,0.826,3449.0,3448.9,0.60536286]
[1721301994402,1.97136138,3449.0,3448.9,0.60536286]
[1721301995405,4.58661688,3449.0,3448.9,0.05536286]
[1721301995611,4.58661688,3449.0,3448.2,2.90001]
[1721301995817,0.826,3448.3,3448.0,10.36022]
[1721301996018,0.826,3448.1,3447.8,2.90038]
[1721301996173,0.826,3447.9,3447.8,2.90038]
[1721301997172,0.826,3448.1,3447.9,2.90026]
[1721301997480,0.826,3448.1,3448.0,0.55]
[1721301998381,2.4087,3448.5,3448.0,0.55]
[1721301998580,0.826,3448.1,3448.0,0.55]
[1721302002025,0.826,3448.1,3448.0,2.998]
[1721302002229,0.826,3448.3,3448.0,2.998]
[1721302002721,0.826,3448.3,3448.0,5.89821]
[1721302006008,0.826,3448.3,3448.1,0.05194205]
[1721302006208,0.826,3448.3,3448.2,0.55]
[1721302006449,0.826,3448.3,3448.2,0.60192206]
[1721302006450,1.97158372,3448.3,3448.2,0.60192206]
[1721302008276,1.14558372,3448.3,3448.2,2.89582206]
[1721302008426,0.826,3448.6,3448.3,2.89995]
[1721302008758,1.14550766,3448.5,3448.4,0.55]
[1721302008962,1.14550766,3448.5,3448.4,0.6019006]
[1721302011933,1.14549145,3448.5,3448.4,0.6019006]
[1721302012331,1.4643683,3448.5,3448.4,0.6019006]
[1721302012736,1.4643683,3448.5,3448.4,0.55]
[1721302012954,1.46437538,3448.5,3448.4,0.55]
[1721302013547,2.68056902,3448.5,3448.4,0.55]
[1721302013989,2.68056902,3448.5,3448.4,0.6019006]
[1721302014571,1.46437538,3448.5,3448.4,0.6019006]
[1721302015095,1.46435534,3448.5,3448.4,0.55]
[1721302016169,1.46435534,3448.5,3447.7,5.33982]
[1721302016170,2.89991,3448.4,3447.7,2.4394]
[1721302016478,2.89991,3448.4,3447.8,0.60202058]
[1721302016479,0.826,3447.9,3447.8,0.60202058]
[1721302019595,0.826,3448.1,3447.8,0.60202058]
[1721302023375,0.826,3448.1,3447.9,2.4225]
[1721302023582,0.826,3448.1,3448.0,0.55]
[1721302023780,0.826,3448.4,3448.0,0.60211271]
[1721302023983,1.217086,3448.6,3448.0,0.60211271]
[1721302024190,1.14556031,3448.5,3448.1,2.90014]
[1721302024385,1.14556031,3448.5,3448.2,0.60207272]
[1721302024586,0.826,3448.4,3448.2,0.60207272]
[1721302024993,1.14556423,3448.3,3448.2,0.55]
[1721302025204,1.14556423,3448.3,3448.1,0.55]
[1721302025481,1.14556423,3448.3,3448.2,0.05207272]
[1721302025706,1.14556423,3448.3,3448.2,0.55]
[1721302025929,1.14556423,3448.3,3448.2,0.60207272]
[1721302026081,0.826,3448.4,3448.2,0.60207272]
[1721302026280,0.826,3448.4,3448.3,0.55]
[1721302026491,1.9715564,3448.4,3448.3,0.60205273]
[1721302026787,1.9715564,3448.4,3448.3,0.55]
[1721302027112,1.9715564,3448.4,3448.0,2.90023]
[1721302027113,0.826,3448.4,3448.1,0.55]
[1721302027492,0.826,3448.4,3448.2,0.05207272]
[1721302027721,0.826,3448.4,3448.3,0.55]
[1721302027911,1.9715709,3448.4,3448.3,0.55]
[1721302028087,1.9715709,3448.4,3448.3,0.05201333]
[1721302028419,1.9715709,3448.4,3448.3,0.55]
[1721302028641,1.9715709,3448.4,3448.1,0.55]
[1721302028781,0.826,3448.4,3448.1,0.55]
[1721302028984,0.826,3448.4,3448.2,0.05203332]
[1721302029316,0.826,3448.4,3448.3,0.55]
[1721302029481,1.97155244,3448.4,3448.3,0.55]
[1721302029684,1.97155244,3448.4,3448.2,2.3514]
[1721302029913,0.826,3448.4,3448.3,0.55]
[1721302030114,0.826,3448.4,3448.3,0.60201333]
[1721302030711,1.97153451,3448.4,3448.3,0.60201333]
[1721302030898,1.97153461,3448.4,3448.3,0.60201333]
[1721302031098,0.826,3448.4,3448.3,0.60201333]
[1721302031613,1.97153457,3448.4,3448.3,0.60201333]
[1721302033193,1.94771726,3448.4,3448.3,0.60201333]
[1721302033593,1.94771761,3448.4,3448.3,0.60201333]
[1721302035020,1.14551364,3448.4,3448.3,0.60201333]
[1721302035235,0.826,3448.4,3448.3,0.60201333]
[1721302035623,1.97151364,3448.4,3448.3,0.60201333]
[1721302035827,1.9715382,3448.4,3448.3,0.60201333]
[1721302036922,1.97153841,3448.4,3448.3,0.60201333]
[1721302038627,1.217086,3448.7,3448.3,5.91283333]
[1721302038830,1.14548873,3448.6,3448.5,2.89981]
[1721302039058,4.25255784,3449.3,3448.8,2.4109]
[1721302039059,0.826,3449.1,3448.8,2.4109]
[1721302039203,1.14534532,3449.0,3448.8,2.4109]
[1721302039410,0.826,3449.1,3448.9,0.60179834]
[1721302039636,1.14532804,3449.0,3448.9,0.60179834]
[1721302040015,0.826,3449.1,3448.9,0.60179834]
[1721302040740,1.14534352,3449.0,3448.9,0.60179834]
[1721302043309,0.826,3449.1,3448.9,0.60179834]
[1721302043509,0.826,3449.1,3448.9,3.50126834]
[1721302048570,0.826,3449.1,3448.9,8.69948834]
[1721302054445,0.826,3449.1,3449.0,2.89939]
[1721302054633,0.826,3449.1,3449.0,3.50088791]
[1721302063882,0.826,3449.2,3449.1,2.8993]
[1721302064095,0.30303329,3449.8,3449.4,2.89903]
[1721302064249,1.9712189,3449.7,3449.4,2.89903]
[1721302064578,1.9712189,3449.7,3449.5,0.60137946]
[1721302064579,0.826,3449.7,3449.5,0.60137946]
[1721302067557,0.826,3449.7,3449.5,3.02887946]
[1721302072727,1.0,3450.0,3449.5,3.02887946]
[1721302072869,0.826,3449.7,3449.5,3.02887946]
[1721302079585,0.826,3449.7,3449.5,5.92783946]
[1721302082802,0.826,3449.7,3449.6,2.89888]
[1721302083006,0.826,3449.7,3449.6,3.44888]
[1721302083305,0.826,3449.7,3449.6,3.50010515]
[1721302083519,0.826,3449.9,3449.6,6.39891515]
[1721302083825,0.826,3449.9,3449.7,0.55]
[1721302084315,0.826,3449.9,3449.8,0.05118519]
[1721302084522,1.97112796,3449.9,3449.8,0.55]
[1721302084719,1.97112781,3449.9,3449.8,0.60118519]
[1721302088141,0.826,3449.9,3449.8,0.60118519]
[1721302088443,1.97113509,3449.9,3449.8,0.60118519]
[1721302088835,1.97113514,3449.9,3449.8,0.60118519]
[1721302091010,0.826,3449.9,3449.8,0.60118519]
[1721302091309,1.97113667,3449.9,3449.8,0.60118519]
[1721302094038,1.14513667,3449.9,3449.8,0.60118519]
[1721302094253,1.97116572,3449.9,3449.8,0.60118519]
[1721302094455,1.0,3450.0,3449.9,2.4456]
[1721302094608,2.97107928,3450.0,3449.9,2.9956]
[1721302094809,2.97107928,3450.0,3449.9,3.04653123]
[1721302096425,1.826,3450.0,3449.9,3.04653123]
[1721302099340,1.826,3450.0,3449.9,5.94516123]
[1721302103151,1.0,3450.0,3449.9,5.94516123]
[1721302109554,2.1450474,3450.0,3449.9,5.94516123]
[1721302110456,2.14504401,3450.0,3449.9,5.94516123]
[1721302113566,2.14503472,3450.0,3449.9,5.94516123]
[1721302114262,2.97103472,3450.0,3449.9,5.94516123]
[1721302114463,2.97103472,3450.0,3449.9,3.49956123]
[1721302114630,2.97103472,3450.0,3449.9,0.60093123]
[1721302116864,2.97107656,3450.0,3449.9,0.60093123]
[1721302117167,2.97107624,3450.0,3449.9,0.60093123]
[1721302117864,2.97107845,3450.0,3449.9,0.60093123]
[1721302119967,1.826,3450.0,3449.9,0.60093123]
[1721302120147,2.97107828,3450.0,3449.9,0.60093123]
[1721302123237,1.826,3450.0,3449.9,0.60093123]
[1721302123575,2.97107776,3450.0,3449.9,0.60093123]
[1721302125950,1.826,3450.0,3449.9,0.60093123]
[1721302126147,2.97107757,3450.0,3449.9,0.60093123]
[1721302126750,2.9710776,3450.0,3449.9,0.60093123]
[1721302127295,2.97107758,3450.0,3449.9,0.60093123]
[1721302127655,2.97107823,3450.0,3449.9,0.60093123]
[1721302129253,2.14507823,3450.0,3449.9,0.60093123]
[1721302129970,2.1450708,3450.0,3449.9,0.60093123]
[1721302130801,2.14507127,3450.0,3449.9,0.60093123]
[1721302133196,2.14507119,3450.0,3449.9,0.60093123]
[1721302133503,2.14507119,3450.0,3449.9,5.88926123]
[1721302136395,2.14503993,3450.0,3449.9,5.88926123]
[1721302136897,2.14502724,3450.0,3449.9,5.88926123]
[1721302137194,1.0,3450.0,3449.9,5.88926123]
[1721302137563,2.14504296,3450.0,3449.9,5.88926123]
[1721302139171,2.1450114,3450.0,3449.9,5.88926123]
[1721302139602,1.0,3450.0,3449.9,3.49956123]
[1721302139892,2.14500315,3450.0,3449.9,3.49956123]
[1721302141997,1.0,3450.0,3449.9,3.49956123]
[1721302142196,2.14500273,3450.0,3449.9,3.49956123]
[1721302143504,2.14500273,3450.0,3449.9,5.95496123]
[1721302144100,1.0,3450.0,3449.9,5.95496123]
[1721302155006,1.0,3450.0,3449.9,3.49956123]
[1721302163719,1.0,3450.0,3449.9,0.05093123]
[1721302163901,2.32762759,3450.0,3449.9,0.05093123]
[1721302164108,2.32762759,3450.0,3449.3,2.89908]
[1721302164309,0.826,3449.8,3449.3,2.89907]
[1721302164507,0.826,3449.8,3449.4,0.05064633]
[1721302164695,1.14512109,3449.7,3449.4,2.94968633]
[1721302164905,0.826,3449.8,3449.5,0.55]
[1721302165288,0.826,3449.8,3449.6,0.05060637]
[1721302165624,0.826,3449.8,3449.7,0.55]
[1721302165911,0.826,3449.8,3449.7,0.60058639]
[1721302166085,1.97110086,3449.8,3449.7,0.60058639]
[1721302166728,1.14510086,3449.8,3449.7,0.60058639]
[1721302167021,1.14510086,3449.9,3449.7,0.60058639]
[1721302167808,1.14509909,3449.8,3449.7,0.60058639]
[1721302168007,1.14509909,3449.9,3449.7,0.60058639]
[1721302169401,0.826,3449.8,3449.7,0.05058639]
[1721302169739,1.97109909,3449.8,3449.3,2.89909]
[1721302170031,1.14509909,3449.7,3449.4,0.55]
[1721302171040,1.14517384,3449.6,3449.5,0.05062635]
[1721302171203,1.14517384,3449.6,3449.5,0.55]
[1721302171523,1.14517384,3449.6,3449.5,0.60062635]
[1721302171703,1.14517384,3449.7,3449.5,0.60062635]
[1721302171901,1.14517384,3449.6,3449.5,0.60062635]
[1721302172228,1.14517384,3449.7,3449.5,0.60062635]
[1721302172548,1.14517384,3449.7,3449.6,0.55]
[1721302172838,1.14517384,3449.7,3449.6,0.60060637]
[1721302174459,1.14517286,3449.7,3449.6,0.60060637]
[1721302174624,0.826,3449.8,3449.6,0.60060637]
[1721302174946,1.14517291,3449.7,3449.6,0.60060637]
[1721302175331,1.14517229,3449.7,3449.6,0.60060637]
[1721302175537,0.826,3449.8,3449.6,0.60060637]
[1721302176619,1.14514638,3449.7,3449.6,0.60060637]
[1721302177433,0.826,3449.8,3449.6,0.60060637]
[1721302179051,2.4451,3449.5,3448.8,2.89947]
[1721302179304,2.4451,3449.5,3448.5,5.65649785]
[1721302179305,0.826,3448.9,3448.5,5.65649785]
[1721302179480,4.10226637,3449.4,3448.5,5.65649785]
[1721302179481,0.826,3448.6,3448.5,5.20206]
[1721302179757,0.826,3448.6,3447.9,2.2728]
[1721302179913,2.8994,3449.0,3447.9,2.2728]
[1721302179914,0.826,3448.4,3447.9,2.2728]
[1721302180108,0.826,3448.4,3448.0,2.90014]
[1721302180339,0.826,3448.4,3447.9,5.17306]
[1721302180556,0.826,3448.2,3447.9,2.2728]
[1721302180866,0.826,3448.0,3447.6,5.17334]
[1721302181047,0.826,3447.8,3447.6,5.17334]
[1721302181413,0.826,3447.8,3447.6,2.2728]
[1721302181623,0.826,3447.8,3447.6,5.17334]
[1721302182543,2.95791978,3448.4,3447.6,5.17334]
[1721302182544,0.826,3448.0,3447.6,5.17334]
[1721302182925,0.826,3448.0,3447.6,2.2728]
[1721302183325,0.826,3448.0,3447.7,0.55]
[1721302185361,2.90011,3448.2,3447.7,0.55]
[1721302185674,0.826,3448.1,3447.7,0.55]
[1721302185874,3.72615,3448.1,3447.7,0.55]
[1721302186654,3.72615,3448.1,3447.8,0.04689294]
[1721302187329,0.826,3447.9,3447.8,0.04689294]
[1721302187633,0.826,3447.9,3447.8,0.59689294]
[1721302191788,0.826,3447.9,3447.8,0.04689294]
[1721302192060,2.9005,3447.7,3447.1,2.3345]
[1721302192266,0.826,3447.2,3447.1,2.3345]
[1721302192962,0.826,3447.2,3446.8,2.3345]
[1721302193470,0.826,3447.2,3446.9,0.55]
[1721302193931,0.826,3447.2,3446.8,2.3345]
[1721302194248,3.72707,3447.0,3446.3,2.90166]
[1721302194425,0.826,3446.8,3446.3,2.90166]
[1721302194939,0.826,3447.3,3446.5,2.90147]
[1721302195283,0.826,3447.3,3446.5,5.80294]
[1721302195582,0.826,3447.3,3446.6,0.05801874]
[1721302195783,0.826,3447.3,3446.7,0.55]
[1721302197795,0.826,3447.3,3446.7,3.45131]
[1721302199839,0.826,3447.3,3446.7,6.35255]
[1721302201383,0.826,3447.3,3446.8,2.90123]
[1721302201586,0.826,3447.3,3446.9,0.55]
[1721302201924,2.90067,3447.5,3446.9,0.55]
[1721302202203,0.826,3447.1,3446.9,0.55]
[1721302202346,0.826,3447.1,3446.6,0.55]
[1721302202545,0.826,3446.7,3446.6,0.55]
[1721302203167,0.826,3447.1,3446.6,3.45141]
[1721302203368,0.826,3447.1,3446.7,2.9013]
[1721302203587,2.90052,3447.7,3446.8,3.45121]
[1721302203790,0.826,3447.4,3446.8,3.50922919]
[1721302204304,0.826,3447.4,3446.9,5.34944]
[1721302204501,0.826,3447.4,3447.0,0.55]
[1721302206091,0.826,3447.2,3447.0,0.55]
[1721302207569,0.826,3447.2,3446.8,0.55]
[1721302207795,0.826,3447.0,3446.8,0.55]
[1721302208612,0.826,3447.0,3446.8,3.45123]
[1721302210507,0.826,3447.4,3446.8,6.35241]
[1721302210809,0.826,3447.3,3446.9,2.90114]
[1721302211014,0.826,3447.3,3447.0,0.55]
[1721302211516,0.826,3447.3,3447.1,2.2808]
[1721302211720,0.826,3447.3,3447.0,0.55]
[1721302213571,2.90019,3448.1,3447.0,0.60801706]
[1721302213774,0.826,3448.0,3447.1,2.43591155]
[1721302213998,5.37314,3448.5,3447.1,2.43591155]
[1721302213999,0.826,3448.2,3447.7,5.27838]
[1721302214403,0.826,3448.4,3447.8,0.6080037]
[1721302214582,2.89934,3449.1,3448.1,2.90009]
[1721302214583,0.826,3448.6,3448.1,2.90009]
[1721302214783,0.826,3448.6,3448.2,0.55]
[1721302215074,0.826,3448.6,3448.2,3.45005]
[1721302216308,0.30275542,3449.0,3448.2,3.45005]
[1721302216618,2.4166,3449.2,3448.5,2.8998]
[1721302219286,1.979,3449.1,3448.2,0.55]
[1721302219498,1.979,3449.1,3448.0,2.90022]
[1721302219499,0.05800978,3449.0,3448.1,0.55]
[1721302219703,2.89948,3448.9,3448.1,0.55]
[1721302220007,0.49364898,3448.8,3448.1,0.55]
[1721302221191,0.49364898,3448.8,3448.1,3.45014]
[1721302223399,4.87835,3449.1,3448.2,2.90005]
[1721302223600,2.89939,3449.0,3448.3,2.2575]
[1721302224007,5.31585,3449.2,3448.3,5.15739]
[1721302224008,2.4166,3449.2,3448.3,5.15739]
[1721302224323,2.89915,3449.3,3448.5,2.89978]
[1721302224525,0.487815,3449.2,3448.5,2.89978]
[1721302225643,4.11552813,3449.8,3448.4,0.55]
[1721302225800,5.34218,3449.9,3449.0,2.89938]
[1721302225998,5.34218,3449.9,3449.1,2.3227]
[1721302226417,5.34218,3449.9,3449.1,5.22199]
[1721302226616,4.020685,3449.8,3449.1,5.22199]
[1721302226913,2.89881,3449.7,3448.9,2.89941]
[1721302227114,2.89881,3449.7,3449.0,0.55]
[1721302229511,2.89881,3449.7,3449.0,3.44934]
[1721302233818,2.89881,3449.7,3449.1,2.8993]
[1721302234006,0.9362955,3449.6,3449.1,2.8993]
[1721302235438,2.4435,3449.9,3449.2,3.44921]
[1721302235908,0.05800978,3449.8,3449.2,3.44921]
[1721302236333,0.05800978,3449.8,3449.2,0.55]
[1721302236502,0.05800978,3449.8,3449.0,2.89933]
[1721302236503,2.03700978,3449.8,3449.1,0.55]
[1721302236705,2.03700978,3449.8,3449.1,3.44928]
[1721302236706,1.18579976,3449.7,3449.1,3.44928]
[1721302236906,1.12778998,3449.7,3449.2,2.89917]
[1721302237119,1.18579976,3449.7,3449.3,0.55]
[1721302237808,1.18579976,3449.7,3449.0,2.89936]
[1721302238042,1.18579976,3449.7,3449.1,0.55]
[1721302238345,1.18579976,3449.7,3449.1,3.44927]
[1721302238846,1.12778998,3449.7,3449.1,3.44927]
[1721302240727,1.18579976,3449.7,3449.1,3.44927]
[1721302241254,1.12778998,3449.7,3449.1,3.44927]
[1721302241752,1.18579976,3449.7,3449.1,3.44927]
[1721302242059,1.12778998,3449.7,3449.1,3.44927]
[1721302242553,0.824,3449.3,3449.1,3.44927]
[1721302244619,0.824,3449.3,3449.1,0.55]
[1721302244840,0.824,3449.3,3449.0,3.44936]
[1721302247258,0.824,3449.3,3449.0,0.55]
[1721302247474,0.824,3449.3,3448.9,0.55]
[1721302247622,3.2738,3449.3,3448.9,0.55]
[1721302247833,0.824,3449.1,3448.9,0.55]
[1721302248562,0.824,3449.1,3448.4,7.46]
[1721302248563,2.89953,3448.9,3448.4,7.46]
[1721302248728,2.89953,3448.9,3447.8,2.90038]
[1721302248729,0.824,3448.5,3447.8,2.90038]
[1721302248922,0.824,3448.5,3447.7,5.20388]
[1721302248923,0.824,3448.0,3447.7,5.20388]
[1721302250119,0.824,3448.2,3447.7,5.20388]
[1721302250321,2.89983,3448.5,3447.7,5.20388]
[1721302250521,2.89983,3448.5,3447.8,0.55]
[1721302250522,0.579952,3448.4,3447.8,0.55]
[1721302251681,1.979,3448.8,3447.8,0.55]
[1721302251828,0.614983,3448.9,3447.8,0.55]
[1721302252025,2.89961,3448.8,3447.9,2.90029]
[1721302252222,2.89961,3448.8,3448.0,3.45021]
[1721302252641,0.614983,3448.9,3448.1,2.90013]
[1721302252843,0.30287933,3449.3,3448.5,2.8998]
[1721302253043,0.30287933,3449.3,3448.7,2.89958]
[1721302253245,5.34255,3449.8,3448.7,2.89958]
[1721302253432,1.122011,3449.7,3448.9,2.89942]
[1721302253638,4.020811,3449.7,3449.0,0.55]
[1721302254729,4.020811,3449.7,3448.7,2.89958]
[1721302254730,4.87791,3449.6,3448.7,2.89957]
[1721302254928,2.89902,3449.5,3448.8,0.55]
[1721302255229,0.6000031,3449.4,3448.8,0.55]
[1721302256362,3.4991231,3449.4,3448.5,2.89979]
[1721302256569,3.4991231,3449.4,3448.6,0.55]
[1721302256863,3.4991231,3449.4,3448.6,3.44971]
[1721302257095,0.83771431,3449.3,3448.6,3.44971]
[1721302257749,0.6000031,3449.4,3448.6,3.44971]
[1721302258131,3.4990531,3449.4,3448.6,3.44971]
[1721302258729,1.14536445,3449.3,3448.6,3.44971]
[1721302258935,0.6000031,3449.4,3448.6,3.44971]
[1721302259162,1.14536413,3449.3,3448.6,3.44971]
[1721302259536,0.6000031,3449.4,3448.7,2.89964]
[1721302259727,1.14536098,3449.3,3448.8,2.89955]
[1721302260068,1.14536098,3449.3,3448.6,0.55]
[1721302260069,1.51905198,3449.8,3449.1,2.89925]
[1721302260275,1.83893057,3449.7,3449.1,2.89925]
[1721302260582,1.14525659,3449.6,3449.2,0.55]
[1721302260736,2.36204472,3449.6,3449.0,2.89933]
[1721302260949,1.14525659,3449.5,3449.1,0.55]
[1721302261275,1.14528967,3449.4,3449.1,0.55]
[1721302261593,1.91046211,3449.7,3449.1,0.55]
[1721302261899,1.80834087,3449.6,3449.1,0.55]
[1721302262189,1.14528935,3449.5,3449.1,0.55]
[1721302262346,1.14528935,3449.5,3449.0,0.55]
[1721302263861,1.20329913,3449.5,3448.8,0.55]
[1721302264182,1.14528935,3449.4,3448.8,0.55]
[1721302264407,0.65622566,3449.3,3448.7,0.55]
[1721302264549,0.65622566,3449.3,3448.6,3.4497]
[1721302264550,1.14532262,3449.2,3448.6,3.4497]
[1721302265444,1.14532262,3449.2,3448.7,2.89963]
[1721302267588,0.59821588,3449.3,3448.7,2.89963]
[1721302267743,1.14537344,3449.2,3448.7,2.89963]
[1721302268265,1.1453738,3449.1,3448.6,0.55]
[1721302268461,0.59821588,3449.3,3448.6,2.89966]
[1721302268695,1.14538851,3449.2,3448.7,3.44963]
[1721302269204,1.14538851,3449.2,3448.7,3.48546554]
[1721302270908,0.59821588,3449.3,3448.7,3.48546554]
[1721302270909,1.14537996,3449.1,3448.7,3.48546554]
[1721302271051,1.14537996,3449.0,3448.7,3.48546554]
[1721302271254,0.59821588,3449.3,3448.7,3.48546554]
[1721302271470,2.05865848,3449.2,3448.7,3.48546554]
[1721302271677,1.14537904,3449.1,3448.7,3.48546554]
[1721302271967,1.21678813,3449.4,3448.7,3.48546554]
[1721302272179,1.14536308,3449.3,3448.7,3.48546554]
[1721302273294,1.14536308,3449.3,3448.8,2.89955]
[1721302276462,1.14536308,3449.3,3449.0,2.3321]
[1721302277282,1.21678813,3449.5,3449.0,2.3321]
[1721302277599,1.21678813,3449.5,3449.1,0.03573248]
[1721302277600,1.14532672,3449.4,3449.1,0.03573248]
[1721302277801,2.15751348,3449.5,3449.0,2.3321]
[1721302278107,2.36211398,3449.4,3449.2,0.03568477]
[1721302278257,1.14532585,3449.3,3449.1,0.03570476]
[1721302278462,1.14533936,3449.2,3449.0,2.3321]
[1721302278758,0.94072535,3449.5,3449.0,2.3321]
[1721302278759,1.14533936,3449.1,3449.0,2.3321]
[1721302279368,1.14533936,3449.3,3449.0,2.3321]
[1721302279657,1.14533936,3449.2,3449.0,2.3321]
[1721302279861,1.14533936,3449.1,3448.9,0.55]
[1721302280163,1.14533936,3449.1,3448.7,0.03583554]
[1721302280164,1.145359,3449.0,3448.7,0.58583554]
[1721302280366,1.21678813,3449.4,3448.8,2.89955]
[1721302280601,1.14536942,3449.3,3448.9,0.55]
[1721302283503,1.14536942,3449.3,3448.9,3.44945]
[1721302283711,1.21678813,3449.5,3448.9,3.44945]
[1721302283712,1.21678813,3449.5,3449.0,2.4428]
[1721302284002,1.14529684,3449.4,3449.0,2.4428]
[1721302284167,1.14529684,3449.3,3449.0,5.34218]
[1721302284370,1.14527921,3449.2,3449.0,5.34218]
[1721302284570,1.21678813,3449.6,3449.0,5.34218]
[1721302284811,1.44921765,3449.5,3449.0,5.34218]